fUST/lending_fUST_20251022
["ID","MTS","AMOUNT","RATE_DAILY","PERIOD"]
[392043172,1761117033495,-425.05685536,0.00030957,2]
[392043173,1761117033505,-500.0,0.00030957,2]
[392043174,1761117033514,-500.0,0.00030957,2]
[392043175,1761117033524,-500.0,0.00030957,2]
[392043176,1761117033534,-500.0,0.00030957,2]
[392043177,1761117033544,-500.0,0.00030957,2]
[392043178,1761117033554,-500.0,0.00030957,2]
[392043179,1761117033564,-500.0,0.00030957,2]
[392043180,1761117033574,-345.95941145,0.00030957,2]
[392043181,1761117033583,-500.0,0.00030957,2]
[392043182,1761117033592,-500.0,0.00030957,2]
[392043183,1761117033602,-500.0,0.00030957,2]
[392043184,1761117033613,-500.0,0.00030957,2]
[392043185,1761117033623,-500.0,0.00030957,2]
[392043186,1761117033633,-500.0,0.00030957,2]
[392043187,1761117033643,-298.90286017,0.00030957,2]
[392043188,1761117033654,-500.0,0.00030957,2]
[392043189,1761117033664,-500.0,0.00030957,2]
[392043190,1761117033674,-500.0,0.00030957,2]
[392043191,1761117033684,-500.0,0.00030957,2]
[392043192,1761117033694,-500.0,0.00030957,2]
[392043193,1761117033704,-500.0,0.00030957,2]
[392043194,1761117033714,-500.0,0.00030957,2]
[392043195,1761117033724,-500.0,0.00030957,2]
[392043196,1761117033734,-500.0,0.00030957,2]
[392043197,1761117033744,-500.0,0.00030957,2]
[392043198,1761117033754,-578.25495964,0.00030957,2]
[392043199,1761117033764,-500.0,0.00030957,2]
[392043200,1761117033774,-500.0,0.00030957,2]
[392043201,1761117033783,-500.0,0.00030957,2]
[392043202,1761117033795,-500.0,0.00030957,2]
[392043203,1761117033806,-500.0,0.00030957,2]
[392043204,1761117033816,-500.0,0.00030957,2]
[392043205,1761117033826,-500.0,0.00030957,2]
[392043206,1761117033835,-500.0,0.00030957,2]
[392043207,1761117033844,-500.0,0.00030957,2]
[392043208,1761117033854,-500.0,0.00030957,2]
[392043209,1761117033863,-500.0,0.00030957,2]
[392043210,1761117033876,-500.0,0.00030957,2]
[392043211,1761117033885,-500.0,0.00030957,2]
[392043212,1761117033895,-500.0,0.00030957,2]
[392043213,1761117033905,-500.0,0.00030957,2]
[392043214,1761117033915,-500.0,0.00030957,2]
[392043215,1761117033925,-500.0,0.00030957,2]
[392043216,1761117033935,-500.0,0.00030957,2]
[392043217,1761117033945,-500.0,0.00030957,2]
[392043218,1761117033955,-381.56689116,0.00030957,2]
[392043219,1761117033965,-500.0,0.00030957,2]
[392043220,1761117033974,-500.0,0.00030957,2]
[392043221,1761117033983,-500.0,0.00030957,2]
[392043222,1761117033992,-500.0,0.00030957,2]
[392043223,1761117034002,-500.0,0.00030957,2]
[392043224,1761117034011,-618.14,0.00030958,2]
[392043225,1761117034020,-500.0,0.00030958,7]
[392043226,1761117034028,-1666.69,0.00030958,7]
[392043227,1761117034034,-622.56,0.00030958,7]
[392043228,1761117034042,-500.0,0.00030958,7]
[392043229,1761117034049,-500.0,0.00030958,3]
[392043230,1761117034059,-500.0,0.00030958,7]
[392043231,1761117034068,-500.0,0.00030958,7]
[392043232,1761117034077,-500.0,0.00030958,7]
[392043233,1761117034087,-303.95024895,0.00030958,7]
[392043234,1761117034097,-500.0,0.00030958,7]
[392043235,1761117034107,-500.0,0.00030958,2]
[392043236,1761117034116,-1500.0,0.00031176,5]
[392043237,1761117034126,-256.93,0.00031222,10]
[392043238,1761117034135,-178.43,0.00031222,10]
[392043239,1761117034145,-179.68,0.00031222,10]
[392043240,1761117034155,-618.14,0.00031232,2]
[392043241,1761117034168,-500.0,0.00031232,7]
[392043242,1761117034179,-1666.69,0.00031232,7]
[392043243,1761117034189,-622.56,0.00031232,7]
[392043244,1761117034201,-500.0,0.00031232,7]
[392043245,1761117034211,-500.0,0.00031232,3]
[392043246,1761117034222,-500.0,0.00031232,7]
[392043247,1761117034233,-500.0,0.00031232,7]
[392043248,1761117034244,-500.0,0.00031232,7]
[392043249,1761117034254,-500.0,0.00031232,7]
[392043250,1761117034265,-500.0,0.00031232,2]
[392043251,1761117034276,-258.74,0.00031496,10]
[392043252,1761117034286,-215.62,0.00031496,10]
[392043253,1761117034296,-618.14,0.00031506,2]
[392043254,1761117034306,-500.0,0.00031506,7]
[392043255,1761117034317,-1666.69,0.00031506,7]
[392043256,1761117034327,-622.56,0.00031506,7]
[392043257,1761117034337,-500.0,0.00031506,7]
[392043258,1761117034346,-500.0,0.00031506,3]
[392043259,1761117034355,-500.0,0.00031506,7]
[392043260,1761117034365,-596.72,0.00031506,7]
[392043261,1761117034374,-500.0,0.00031506,7]
[392043262,1761117034383,-500.0,0.00031506,7]
[392043263,1761117034392,-500.0,0.00031506,2]
[392043264,1761117034402,-2000.0,0.00031724,5]
[392043265,1761117034411,-393.0,0.00031761,2]
[392043266,1761117034421,-618.14,0.0003178,2]
[392043267,1761117034431,-1666.69,0.0003178,7]
[392043268,1761117034440,-622.56,0.0003178,7]
[392043269,1761117034451,-500.0,0.0003178,7]
[392043270,1761117034460,-500.0,0.0003178,3]
[392043271,1761117034470,-500.0,0.0003178,7]
[392043272,1761117034480,-153.914952,0.000318,7]
[392043273,1761117034490,-500.0,0.00031808,7]
[392043274,1761117034499,-618.14,0.00032054,2]
[392043275,1761117034509,-1666.69,0.00032054,7]
[392043276,1761117034519,-622.56,0.00032054,7]
[392043277,1761117034529,-500.0,0.00032054,7]
[392043278,1761117034539,-500.0,0.00032054,3]
[392043279,1761117034549,-500.0,0.00032054,7]
[392043280,1761117034559,-457.86,0.00032109,15]
[392043281,1761117034568,-457.86,0.00032209,15]
[392043282,1761117034578,-11499.7343229,0.00032262,2]
[392043283,1761117034587,-1314.04162302,0.00032262,2]
[392043284,1761117034597,-2500.0,0.00032272,5]
[392043285,1761117034607,-500.0,0.00032273,5]
[392043286,1761117034617,-457.86,0.00032309,15]
[392043287,1761117034626,-618.14,0.00032328,2]
[392043288,1761117034636,-1666.69,0.00032328,7]
[392043289,1761117034646,-622.56,0.00032328,7]
[392043290,1761117034656,-500.0,0.00032328,7]
[392043291,1761117034666,-500.0,0.00032328,3]
[392043292,1761117034675,-500.0,0.00032328,7]
[392043293,1761117034794,-457.86,0.00032409,15]
[392043294,1761117034806,-153.914952,0.00032412,10]
[392043295,1761117034816,-156.099669,0.00032412,10]
[392043296,1761117034826,-153.914952,0.00032477,2]
[392043297,1761117034835,-156.099669,0.00032477,2]
[392043298,1761117034845,-457.86,0.00032509,15]
[392043299,1761117034855,-618.14,0.00032602,2]
[392043300,1761117034865,-1666.69,0.00032602,7]
[392043301,1761117034874,-622.56,0.00032602,7]
[392043302,1761117034884,-500.0,0.00032602,7]
[392043303,1761117034894,-500.0,0.00032602,3]
[392043304,1761117034903,-500.0,0.00032602,7]
[392043305,1761117034913,-457.86,0.00032609,15]
[392043306,1761117034923,-823.0,0.00032674,2]
[392043307,1761117034934,-457.86,0.00032709,15]
[392043308,1761117034944,-420.0,0.00032761,2]
[392043309,1761117034953,-156.0,0.000328,120]
[392043310,1761117034963,-457.86,0.00032809,15]
[392043311,1761117034973,-983.0,0.00032816,2]
[392043312,1761117034983,-632.0,0.00032816,2]
[392043313,1761117034992,-2164.0,0.00032816,2]
[392043314,1761117035002,-1000.0,0.00032821,5]
[392043315,1761117035011,-618.14,0.00032876,2]
[392043316,1761117035022,-1666.69,0.00032876,7]
[392043317,1761117035032,-63.47086591,0.00032876,7]
[392043318,1761117035053,-522.35653246,0.00030957,2]
[392043319,1761117035062,-500.0,0.00030957,2]
[392043320,1761117035072,-559.08913409,0.00032876,7]
[392043321,1761117035082,-500.0,0.00032876,7]
[392043322,1761117035092,-500.0,0.00032876,3]
[392043323,1761117035101,-500.0,0.00032876,7]
[392043324,1761117035111,-153.914952,0.000329,7]
[392043325,1761117035120,-158.97718662,0.00032904,30]
[392043326,1761117035130,-457.86,0.00032909,60]
[392043327,1761117035140,-2999.0,0.00033008,120]
[392043328,1761117035150,-457.86,0.00033009,60]
[392043329,1761117035159,-457.86,0.00033109,60]
[392043330,1761117035169,-1339.69748338,0.0003311,15]
[392043331,1761117035178,-618.14,0.0003315,2]
[392043332,1761117035187,-1666.69,0.0003315,7]
[392043333,1761117035197,-622.56,0.0003315,7]
[392043334,1761117035206,-500.0,0.0003315,7]
[392043335,1761117035216,-500.0,0.0003315,3]
[392043336,1761117035226,-500.0,0.0003315,7]
[392043337,1761117035236,-645.07,0.000332,7]
[392043338,1761117035246,-457.86,0.00033209,60]
[392043339,1761117035255,-457.86,0.00033309,60]
[392043340,1761117035264,-700.0,0.00033326,7]
[392043341,1761117035274,-158.97718662,0.00033342,30]
[392043342,1761117035283,-1500.0,0.00033368,5]
[392043343,1761117035293,-457.86,0.00033409,60]
[392043344,1761117035303,-618.14,0.00033424,2]
[392043345,1761117035313,-1666.69,0.00033424,7]
[392043346,1761117035324,-622.56,0.00033424,7]
[392043347,1761117035334,-500.0,0.00033424,7]
[392043348,1761117035344,-500.0,0.00033424,3]
[392043349,1761117035354,-500.0,0.00033424,7]
[392043350,1761117035363,-457.86,0.00033509,60]
[392043351,1761117035373,-457.86,0.00033609,60]
[392043352,1761117035382,-2999.0,0.00033693,120]
[392043353,1761117035392,-618.14,0.00033698,2]
[392043354,1761117035401,-1666.69,0.00033698,7]
[392043355,1761117035410,-622.56,0.00033698,7]
[392043356,1761117035421,-500.0,0.00033698,7]
[392043357,1761117035431,-500.0,0.00033698,3]
[392043358,1761117035440,-500.0,0.00033698,7]
[392043359,1761117035451,-457.86,0.00033709,60]
[392043360,1761117035460,-2017.17340017,0.00033746,2]
[392043361,1761117035469,-158.97718663,0.00033753,30]
[392043362,1761117035479,-158.97718662,0.00033753,30]
[392043363,1761117035488,-211.19269917,0.00033761,120]
[392043364,1761117035497,-158.97718662,0.00033781,30]
[392043365,1761117035507,-158.97718662,0.00033781,30]
[392043366,1761117035517,-457.86,0.00033809,60]
[392043367,1761117035527,-151.0,0.00033843,2]
[392043368,1761117035537,-151.0,0.00033848,2]
[392043369,1761117035547,-11499.7343229,0.00033886,2]
[392043370,1761117035557,-500.19400273,0.00033886,2]
[392043371,1761117035569,-813.84762029,0.00033886,2]
[392043372,1761117035580,-565.42314061,0.00033896,2]
[392043373,1761117035590,-267.8790889,0.000339,2]
[392043374,1761117035599,-457.86,0.00033909,60]
[392043375,1761117035609,-2000.0,0.00033916,5]
[392043376,1761117035618,-618.14,0.00033972,2]
[392043377,1761117035627,-1666.69,0.00033972,7]
[392043378,1761117035636,-622.56,0.00033972,7]
[392043379,1761117035646,-500.0,0.00033972,7]
[392043380,1761117035656,-500.0,0.00033972,3]
[392043381,1761117035665,-500.0,0.00033972,7]
[392043382,1761117035674,-903.39944174,0.0003399,2]
[392043383,1761117035683,-129661.30159011,0.0003399,2]
[392043384,1761117035695,-12043.8255677,0.0003399,2]
[392043385,1761117035706,-1874.31464742,0.0003399,2]
[392043395,1761117038480,-3785.48267826,0.0003399,2]
[392043396,1761117038491,-1634.24175926,0.0003399,2]
[392043397,1761117038502,-23496.84860025,0.0003399,2]
[392043398,1761117038512,-19710.6243453,0.0003399,2]
[392043399,1761117038521,-740377.0,0.00034,2]
[392043400,1761117038532,-858.18,0.00034,14]
[392043401,1761117038542,-200.0,0.00034,120]
[392043402,1761117038552,-153.914952,0.00034,7]
[392043403,1761117038561,-500.0,0.00034,30]
[392043404,1761117038571,-156.099669,0.00034,7]
[392043405,1761117038580,-155.00553262,0.00034,3]
[392043406,1761117038590,-7267.2,0.00034,14]
[392043407,1761117038601,-457.86,0.00034009,60]
[392043408,1761117038610,-500.0,0.0003405,10]
[392043409,1761117038621,-457.86,0.00034109,60]
[392043410,1761117038630,-700.0,0.00034148,7]
[392043411,1761117038640,-153.914952,0.00034202,14]
[392043412,1761117038649,-457.86,0.00034209,60]
[392043413,1761117038659,-158.97718662,0.00034219,30]
[392043414,1761117038668,-11499.7343229,0.00034236,2]
[392043415,1761117038677,-1314.04162302,0.00034236,2]
[392043416,1761117038687,-618.14,0.00034246,2]
[392043417,1761117038698,-1666.69,0.00034246,7]
[392043418,1761117038708,-622.56,0.00034246,7]
[392043419,1761117038719,-500.0,0.00034246,7]
[392043420,1761117038729,-500.0,0.00034246,3]
[392043421,1761117038739,-500.0,0.00034246,7]
[392043422,1761117038748,-500.0,0.0003425,10]
[392043423,1761117038758,-645.07,0.000343,7]
[392043424,1761117038768,-457.86,0.00034309,60]
[392043425,1761117038777,-7000.0,0.00034332,2]
[392043426,1761117038787,-161.720033,0.00034333,30]
[392043427,1761117038798,-2999.0,0.00034378,120]
[392043428,1761117038809,-4125.27691899,0.000344,120]
[392043429,1761117038818,-1865.57017818,0.000344,120]
[392043430,1761117038828,-171.91579903,0.000344,120]
[392043431,1761117038839,-329.07958588,0.000344,120]
[392043432,1761117038849,-467.26872558,0.000344,120]
[392043433,1761117038859,-497.99956348,0.000344,120]
[392043434,1761117038868,-170.10975162,0.000344,120]
[392043435,1761117038879,-1376.53684791,0.000344,120]
[392043436,1761117038890,-189.9694027,0.000344,120]
[392043437,1761117038900,-748.43738388,0.000344,120]
[392043438,1761117038909,-707.53437983,0.000344,120]
[392043439,1761117038919,-1489.65040744,0.000344,120]
[392043440,1761117038929,-457.86,0.00034409,60]
[392043441,1761117038939,-2500.0,0.00034464,5]
[392043442,1761117038950,-1003.123706,0.000345,15]
[392043443,1761117038960,-457.86,0.00034509,60]
[392043444,1761117038970,-618.14,0.0003452,2]
[392043445,1761117038979,-1666.69,0.0003452,7]
[392043446,1761117038989,-622.56,0.0003452,7]
[392043447,1761117038999,-500.0,0.0003452,7]
[392043448,1761117039009,-500.0,0.0003452,3]
[392043449,1761117039019,-500.0,0.0003452,7]
[392043450,1761117039029,-262.14,0.00034548,30]
[392043451,1761117039039,-457.86,0.00034609,60]
[392043452,1761117039049,-500.0,0.0003465,30]
[392043453,1761117039059,-692744.55602161,0.0003465,3]
[392043454,1761117039070,-12500.0,0.00034674,10]
[392043455,1761117039080,-1314.04162302,0.00034687,2]
[392043456,1761117039090,-12500.0,0.00034697,10]
[392043457,1761117039100,-230.43611005,0.000347,12]
[392043458,1761117039111,-457.86,0.00034709,60]
[392043459,1761117039120,-1314.04162302,0.00034733,2]
[392043460,1761117039130,-500.0,0.00034738,7]
[392043461,1761117039140,-500.0,0.00034738,2]
[392043462,1761117039149,-500.0,0.00034738,7]
[392043463,1761117039159,-7000.0,0.00034739,2]
[392043464,1761117039169,-7000.0,0.00034739,2]
[392043465,1761117039178,-7000.0,0.00034739,2]
[392043466,1761117039188,-4875.83281016,0.00034739,2]
[392043467,1761117039202,-370000.0,0.00034743,2]
[392043468,1761117039212,-618.14,0.00034794,2]
[392043469,1761117039221,-1666.69,0.00034794,7]
[392043470,1761117039231,-622.56,0.00034794,7]
[392043471,1761117039241,-500.0,0.00034794,7]
[392043472,1761117039251,-500.0,0.00034794,3]
[392043473,1761117039260,-500.0,0.00034794,7]
[392043474,1761117039271,-300.0,0.000348,2]
[392043475,1761117039280,-150.0,0.000348,2]
[392043476,1761117039290,-457.86,0.00034809,60]
[392043477,1761117039299,-4048.4879248,0.00034818,2]
[392043478,1761117039309,-19901.54387716,0.00034819,2]
[392043521,1761117040834,-5000.0,0.00033989,2]
[392043523,1761117040844,-898.44,0.0003399,10]
[392043525,1761117040854,-12884.45173514,0.00034819,2]
[392043527,1761117040863,-329.5721393,0.00034819,2]
[392043529,1761117040873,-3246.0,0.00034843,30]
[392043531,1761117040882,-151.0,0.00034847,30]
[392043534,1761117040891,-151.0,0.00034847,30]
[392043535,1761117040900,-151.0,0.00034847,30]
[392043537,1761117040909,-151.0,0.00034847,30]
[392043539,1761117040918,-151.0,0.00034847,30]
[392043541,1761117040927,-151.0,0.00034847,30]
[392043543,1761117040936,-151.0,0.00034847,30]
[392043545,1761117040943,-151.0,0.00034847,30]
[392043547,1761117040953,-153.129618,0.00034847,30]
[392043550,1761117040967,-153.129618,0.00034847,30]
[392043552,1761117040977,-153.129618,0.00034847,30]
[392043554,1761117040986,-153.129618,0.00034847,30]
[392043556,1761117040995,-153.129618,0.00034847,30]
[392043558,1761117041004,-153.129618,0.00034847,30]
[392043560,1761117041014,-153.129618,0.00034847,30]
[392043562,1761117041023,-153.129618,0.00034847,30]
[392043563,1761117041032,-153.129618,0.00034847,30]
[392043564,1761117041043,-153.129618,0.00034847,30]
[392043565,1761117041052,-153.129618,0.00034847,30]
[392043566,1761117041061,-153.129618,0.00034847,30]
[392043567,1761117041071,-153.129618,0.00034847,30]
[392043568,1761117041080,-153.129618,0.00034847,30]
[392043569,1761117041089,-153.129618,0.00034847,30]
[392043570,1761117041099,-153.129618,0.00034847,30]
[392043571,1761117041108,-178.006561,0.00034848,30]
[392043572,1761117041117,-178.006561,0.00034848,30]
[392043573,1761117041126,-178.006561,0.00034848,30]
[392043574,1761117041136,-178.006561,0.00034848,30]
[392043575,1761117041145,-178.006561,0.00034848,30]
[392043576,1761117041154,-178.006561,0.00034848,30]
[392043577,1761117041164,-178.006561,0.00034848,30]
[392043578,1761117041174,-178.006561,0.00034848,30]
[392043579,1761117041183,-178.006561,0.00034848,30]
[392043580,1761117041192,-178.006561,0.00034848,30]
[392043581,1761117041203,-178.006561,0.00034848,30]
[392043582,1761117041213,-178.006561,0.00034848,30]
[392043583,1761117041222,-178.006561,0.00034848,30]
[392043584,1761117041231,-178.006561,0.00034848,30]
[392043585,1761117041241,-178.006561,0.00034848,30]
[392043586,1761117041250,-178.006561,0.00034848,30]
[392043587,1761117041260,-46171.01705964,0.00034848,20]
[392043621,1761117045083,-500.0,0.00034,120]
[392043623,1761117045092,-301.75247105,0.00034,120]
[392043624,1761117045104,-198.24752895,0.00034,120]
[392043625,1761117045114,-500.0,0.00034,120]
[392043626,1761117045124,-516.503997,0.00034,120]
[392043627,1761117045133,-199577.03609012,0.00034848,20]
[392043642,1761117047603,-2164109.69297092,0.00034848,20]
[392043643,1761117047614,-150.0,0.00034848,2]
[392043644,1761117047623,-1500.0,0.00034848,3]
[392043645,1761117047633,-150.0,0.00034848,3]
[392043646,1761117047643,-3747.00581582,0.00034848,7]
[392043647,1761117047652,-3100.0,0.00034848,7]
[392043648,1761117047662,-10609.92403103,0.00034848,7]
[392043649,1761117047671,-498.0,0.00034848,7]
[392043650,1761117047681,-154.62759388,0.00034848,7]
[392043651,1761117047690,-2521.53209364,0.00034848,7]
[392043652,1761117047700,-176.82932047,0.00034848,7]
[392043653,1761117047710,-2961.9262712,0.00034848,2]
[392043654,1761117047719,-758.20098029,0.00034848,7]
[392043655,1761117047728,-152.80105128,0.00034848,2]
[392043656,1761117047738,-320.0,0.00034848,2]
[392043657,1761117047748,-361417.66606957,0.00034848,20]
[392043658,1761117047758,-10025.1726594,0.00034848,5]
[392043659,1761117047767,-1199871.41646393,0.00034848,20]
[392043660,1761117047776,-91499.081995,0.00034848,2]
[392043661,1761117047786,-300.0,0.00034848,2]
[392043662,1761117047800,-22719.83553739,0.00034848,2]
[392043663,1761117047810,-3893.35610389,0.00034848,2]
[392043664,1761117047821,-812.30906212,0.00034848,2]
[392043665,1761117047831,-259.03220094,0.00034848,2]
[392043666,1761117047842,-297.83317649,0.00034848,2]
[392043667,1761117047851,-328.06111258,0.00034848,2]
[392043668,1761117047861,-292.78671473,0.00034848,2]
[392043669,1761117047872,-51849.18501883,0.00034848,2]
[392043670,1761117047883,-639.29515758,0.00034848,2]
[392043671,1761117047894,-1366.23016879,0.00034848,2]
[392043672,1761117047904,-157.12468438,0.00034848,2]
[392043673,1761117047914,-6312.9906692,0.00034848,2]
[392043674,1761117047924,-158.12722418,0.00034848,2]
[392043675,1761117047935,-242.10386531,0.00034848,10]
[392043676,1761117047945,-30540.13776906,0.00034848,2]
[392043677,1761117047955,-189.77526796,0.00034848,2]
[392043678,1761117047965,-1401.4031282,0.00034848,2]
[392043679,1761117047976,-5914.51626638,0.00034848,2]
[392043680,1761117047985,-10715.17201416,0.00034848,2]
[392043681,1761117047995,-653.27726544,0.00034848,2]
[392043682,1761117048005,-203.62095684,0.00034848,2]
[392043683,1761117048014,-2920.0,0.00034848,2]
[392043684,1761117048023,-1447.29361936,0.00034848,2]
[392043685,1761117048033,-386.08222907,0.00034848,2]
[392043686,1761117048042,-201.99254913,0.00034848,2]
[392043687,1761117048052,-3157.04970327,0.00034848,2]
[392043688,1761117048062,-167.10471137,0.00034848,2]
[392043689,1761117048071,-365.8015181,0.00034848,2]
[392043690,1761117048080,-150.82302467,0.00034848,2]
[392043691,1761117048089,-100562.23942624,0.00034848,2]
[392043692,1761117048099,-259.36583629,0.00034848,2]
[392043693,1761117048109,-3777.73526731,0.00034848,2]
[392043694,1761117048118,-17481.22242505,0.00034848,2]
[392043695,1761117048128,-1999.93677981,0.00034848,2]
[392043696,1761117048137,-289520.56245948,0.00034848,20]
[392043697,1761117048147,-250.0,0.00034848,10]
[392043698,1761117048156,-250.0,0.00034848,10]
[392043699,1761117048166,-250.0,0.00034848,10]
[392043700,1761117048175,-250.0,0.00034848,10]
[392043701,1761117048184,-250.738656,0.00034848,10]
[392043702,1761117048193,-500.0,0.0003485,10]
[392043703,1761117048202,-3000.0,0.00034855,120]
[392043704,1761117048213,-167.0,0.0003486,7]
[392043705,1761117048222,-175.0,0.0003487,7]
[392043706,1761117048231,-163.0,0.0003487,7]
[392043707,1761117048240,-165.0,0.0003487,7]
[392043708,1761117048250,-156.23380579,0.0003487,7]
[392043709,1761117048259,-163.0,0.0003487,7]
[392043710,1761117048269,-166.0,0.0003487,7]
[392043711,1761117048278,-179.60328872,0.0003487,7]
[392043712,1761117048287,-165.0,0.0003487,7]
[392043713,1761117048296,-163.0,0.0003487,7]
[392043714,1761117048306,-166.0,0.0003487,7]
[392043715,1761117048315,-165.0,0.0003487,7]
[392043716,1761117048324,-167.0,0.0003487,7]
[392043717,1761117048335,-151.76988818,0.0003487,7]
[392043718,1761117048344,-165.0,0.0003487,7]
[392043719,1761117048354,-167.0,0.0003487,7]
[392043720,1761117048363,-167.32785088,0.0003487,7]
[392043721,1761117048372,-299.2825648,0.0003487,7]
[392043722,1761117048382,-166.0,0.0003487,7]
[392043723,1761117048392,-166.0,0.0003487,7]
[392043724,1761117048401,-330.0,0.0003487,7]
[392043725,1761117048411,-166.0,0.0003487,7]
[392043726,1761117048421,-330.0,0.0003487,7]
[392043727,1761117048430,-166.0,0.0003487,7]
[392043728,1761117048439,-330.0,0.0003487,7]
[392043729,1761117048449,-330.0,0.0003487,7]
[392043730,1761117048458,-330.0,0.0003487,7]
[392043731,1761117048467,-330.0,0.0003487,7]
[392043732,1761117048476,-330.0,0.0003487,7]
[392043733,1761117048485,-330.0,0.0003487,7]
[392043734,1761117048494,-330.0,0.0003487,7]
[392043735,1761117048504,-330.0,0.0003487,7]
[392043736,1761117048513,-330.0,0.0003487,7]
[392043737,1761117048523,-277.11343996,0.0003487,7]
[392043738,1761117048532,-2005.58338126,0.00034873,120]
[392043739,1761117048541,-2000.0,0.00034873,30]
[392043740,1761117048551,-574.0,0.00034877,30]
[392043741,1761117048560,-153.914952,0.00034882,10]
[392043742,1761117048570,-156.099669,0.00034882,10]
[392043743,1761117048579,-500.0,0.00034895,15]
[392043744,1761117048589,-500.0,0.00034895,30]
[392043745,1761117048599,-500.0,0.00034895,15]
[392043746,1761117048609,-500.0,0.00034895,10]
[392043747,1761117048618,-500.0,0.00034895,10]
[392043748,1761117048628,-173.69,0.00034895,30]
[392043749,1761117048637,-300.0,0.000349,24]
[392043750,1761117048735,-168.02,0.000349,24]
[392043751,1761117048745,-309.363964,0.000349,9]
[392043752,1761117048755,-250.0,0.000349,10]
[392043753,1761117048765,-762.0,0.000349,2]
[392043754,1761117048775,-457.86,0.00034909,60]
[392043755,1761117048784,-500.0,0.00034919,13]
[392043756,1761117048793,-500.0,0.00034919,13]
[392043757,1761117048805,-153.914952,0.0003493,2]
[392043758,1761117048815,-156.099669,0.0003493,2]
[392043759,1761117048824,-500.0,0.0003497,30]
[392043760,1761117048833,-485.67584611,0.0003497,30]
[392043761,1761117048843,-500.0,0.0003497,30]
[392043762,1761117048853,-500.0,0.0003497,30]
[392043763,1761117048862,-500.0,0.0003497,30]
[392043764,1761117048871,-500.0,0.0003497,30]
[392043765,1761117048882,-500.0,0.0003497,30]
[392043766,1761117048892,-554.22891933,0.0003497,30]
[392043767,1761117048901,-700.0,0.0003497,7]
[392043768,1761117048911,-160.0,0.0003499,3]
[392043769,1761117048920,-167.0990763,0.0003499,5]
[392043770,1761117048929,-10680.54958799,0.00035,2]
[392043771,1761117048939,-655.74705258,0.00035,2]
[392043772,1761117048948,-150.0,0.00035,69]
[392043773,1761117048958,-261.75318806,0.00035,120]
[392043774,1761117048967,-430.67,0.00035,5]
[392043775,1761117048977,-4029.59614893,0.00035,2]
[392043776,1761117048986,-577.11,0.00035,2]
[392043777,1761117048996,-999.99,0.00035,2]
[392043778,1761117049005,-999.99,0.00035,2]
[392043779,1761117049014,-999.99,0.00035,2]
[392043780,1761117049023,-999.99,0.00035,2]
[392043781,1761117049033,-1000.0,0.00035,2]
[392043782,1761117049043,-202.96329083,0.00035,2]
[392043783,1761117049052,-250.0,0.00035,10]
[392043784,1761117049062,-163.0372,0.00035,2]
[392043785,1761117049072,-163.0372,0.00035,2]
[392043786,1761117049081,-7267.2,0.00035,14]
[392043787,1761117049090,-256.26,0.00035,3]
[392043788,1761117049099,-345.6,0.00035,60]
[392043789,1761117049109,-153.914952,0.00035005,14]
[392043790,1761117049119,-457.86,0.00035009,60]
[392043791,1761117049128,-500.0,0.00035012,7]